bitfinex/quotes_ETHUSD_20250827
["timestamp","ask_amount","ask_price","bid_price","bid_amount"]
[1756306236217,2.820289,4629.1,4628.8,0.021]
[1756306236525,0.66,4628.9,4628.8,0.021]
[1756306236725,5.8100688,4629.2,4628.8,0.021]
[1756306236726,0.66,4629.0,4628.8,0.021]
[1756306237092,0.66,4629.1,4628.8,0.021]
[1756306237330,21.96830523,4628.9,4628.8,0.021]
[1756306237524,23.58935667,4628.9,4628.8,0.021]
[1756306237827,21.42901621,4628.9,4628.8,0.021]
[1756306238030,0.66,4628.7,4628.5,0.001]
[1756306238541,0.6592,4628.6,4628.5,0.001]
[1756306238715,2.81968049,4628.6,4628.5,0.001]
[1756306238894,3.03561274,4628.6,4628.5,0.001]
[1756306239092,2.16053065,4628.5,4627.8,0.02]
[1756306239420,2.37641701,4628.6,4627.8,0.02]
[1756306239628,0.21593225,4628.6,4627.8,0.02]
[1756306240033,2.16052716,4628.5,4627.8,0.02]
[1756306240210,0.23764594,4628.4,4627.8,0.02]
[1756306240411,0.23764594,4628.4,4628.3,0.001]
[1756306240731,0.89764594,4628.4,4628.3,0.001]
[1756306243046,2.15983905,4630.0,4628.3,0.001]
[1756306243203,0.649811,4629.2,4628.3,5.784]
[1756306243399,1.661,4630.3,4628.5,2.16052716]
[1756306243603,4.014,4630.3,4628.6,0.1296048]
[1756306243842,0.649689,4630.1,4629.7,2.1599561]
[1756306244037,0.649689,4630.1,4629.5,2.16001825]
[1756306244441,0.649689,4630.1,4629.3,0.02160153]
[1756306244607,16.14796477,4630.5,4629.5,2.16002238]
[1756306244841,0.649637,4630.4,4629.2,1.661]
[1756306245040,4.014,4631.0,4629.4,2.16010714]
[1756306245280,16.14796477,4631.3,4629.4,0.02160107]
[1756306245578,4.013,4631.4,4630.1,2.15973547]
[1756306245746,4.013,4631.4,4629.8,2.26791567]
[1756306245747,4.013,4631.4,4629.8,2.15991567]
[1756306245947,0.649558,4631.2,4629.8,2.15991567]
[1756306246170,0.66,4631.1,4629.9,4.013]
[1756306246341,3.0,4631.0,4630.0,2.15979139]
[1756306246544,0.66,4631.1,4630.4,2.1595985]
[1756306246764,0.66,4631.1,4629.9,4.013]
[1756306246971,0.649558,4631.2,4630.0,0.02159827]
[1756306247157,4.013,4631.5,4630.1,0.40345983]
[1756306247364,0.66,4631.4,4630.6,2.15954055]
[1756306247564,0.66,4631.4,4630.1,0.40345983]
[1756306247565,0.02,4631.8,4630.4,0.0215964]
[1756306247784,0.02,4631.8,4631.0,2.15933861]
[1756306247986,0.02,4631.8,4630.8,1.661]
[1756306248185,3.02,4631.8,4630.9,2.15936651]
[1756306248386,1.56616468,4631.8,4631.3,2.15921947]
[1756306248573,0.02,4631.8,4630.8,1.661]
[1756306249080,3.02,4631.8,4630.8,1.661]
[1756306249284,3.02,4631.8,4631.1,2.15930602]
[1756306249481,0.02,4631.8,4630.9,2.15940745]
[1756306249783,3.02,4631.8,4631.0,2.1593519]
[1756306249987,3.02,4631.8,4630.9,2.15940745]
[1756306250380,0.02,4631.8,4631.0,0.0215936]
[1756306250553,0.02,4631.8,4630.9,3.10628643]
[1756306250554,0.02,4631.8,4631.7,2.15903447]
[1756306250901,0.649423,4632.0,4631.9,2.15894125]
[1756306251048,4.012,4634.7,4631.9,0.12958941]
[1756306251253,0.19983108,4634.6,4632.0,0.79615311]
[1756306251448,0.649142,4634.0,4633.7,2.15810259]
[1756306251795,0.022,4634.8,4633.7,2.15810259]
[1756306252090,0.022,4634.8,4633.7,2.44772585]
[1756306253056,0.022,4634.8,4634.2,2.15786975]
[1756306253359,0.022,4634.8,4634.2,6.19044844]
[1756306253698,0.022,4634.8,4634.2,7.11070904]
[1756306254567,0.022,4634.8,4634.2,3.10070904]
[1756306254757,0.022,4634.8,4634.2,2.26586975]
[1756306254952,0.022,4634.8,4634.2,4.118]
[1756306255199,0.022,4634.8,4633.7,2.31814326]
[1756306255200,3.682,4634.8,4633.7,0.16004224]
[1756306255503,0.66,4634.6,4633.5,4.009]
[1756306255793,2.15773033,4634.5,4633.6,2.15814917]
[1756306256007,0.21797303,4634.3,4633.5,4.009]
[1756306256171,0.002,4634.3,4633.5,4.009]
[1756306256504,2.15786975,4634.2,4633.5,4.009]
[1756306256681,0.662,4634.3,4632.8,4.008]
[1756306256867,0.66,4633.7,4632.8,4.008]
[1756306257074,1.661,4634.1,4632.8,4.008]
[1756306257379,3.66,4633.9,4632.8,4.008]
[1756306257579,0.66,4633.3,4632.8,4.008]
[1756306257784,2.15833549,4633.2,4632.3,4.008]
[1756306257990,2.15833549,4633.2,4632.3,4.17306762]
[1756306258290,5.15834532,4633.2,4632.3,4.17306762]
[1756306258498,0.66,4633.4,4632.3,4.17306762]
[1756306258715,3.66,4633.4,4632.0,1.661]
[1756306258909,0.66,4633.2,4632.0,1.661]
[1756306259202,0.66,4633.1,4632.0,1.661]
[1756306259374,5.15847136,4633.0,4632.2,2.15879414]
[1756306259563,3.0,4633.0,4632.2,2.15879414]
[1756306259964,4.33133164,4634.0,4632.2,0.59787301]
[1756306260165,0.66,4633.6,4632.1,2.15884803]
[1756306260484,0.66,4633.7,4632.0,1.769]
[1756306260686,0.66,4633.5,4632.0,1.769]
[1756306260893,2.15861021,4632.7,4632.0,0.108]
[1756306261186,0.66,4632.7,4631.8,0.02]
[1756306261558,3.0,4632.6,4631.8,0.02]
[1756306261777,2.1589014,4632.0,4631.8,0.02]
[1756306262369,5.81894125,4631.9,4631.8,0.02]
[1756306262559,6.01860045,4631.9,4631.8,0.02]
[1756306262758,5.81894125,4631.9,4631.8,0.02]
[1756306262959,2.15898786,4631.8,4629.6,0.019]
[1756306263170,2.15957464,4630.6,4629.6,0.019]
[1756306263371,0.66,4630.7,4629.6,0.019]
[1756306263798,0.66,4630.7,4630.0,2.159821]
[1756306263971,3.0,4630.6,4629.6,0.019]
[1756306264173,3.66,4630.8,4629.6,0.019]
[1756306264796,2.15937148,4631.0,4629.6,0.019]
[1756306264797,0.66,4631.0,4629.6,0.019]
[1756306265020,6.0513691,4631.0,4629.6,2.17897505]
[1756306265188,4.005,4631.5,4629.6,0.019]
[1756306265382,4.005,4631.5,4630.5,2.15958624]
[1756306265383,3.0,4631.3,4630.5,2.15958624]
[1756306265716,3.0,4631.3,4629.6,0.019]
[1756306265890,2.95,4631.3,4630.7,2.15946959]
[1756306266298,2.95,4631.3,4630.6,2.15953418]
[1756306266479,5.666,4631.8,4630.2,2.15973392]
[1756306266679,5.666,4631.8,4630.3,0.38207339]
[1756306266895,5.666,4631.8,4631.1,2.1592791]
[1756306267216,5.666,4631.8,4630.8,2.15942742]
[1756306267217,2.15902988,4631.8,4630.8,2.15943231]
[1756306267420,2.1593179,4631.1,4630.1,1.661]
[1756306267627,2.15945806,4630.8,4630.1,1.661]
[1756306267794,2.17945806,4630.8,4630.1,1.661]
[1756306267992,0.02,4630.8,4630.2,2.15973392]
[1756306268194,0.02,4630.8,4630.4,2.15963543]
[1756306268401,0.02,4630.8,4630.3,2.15968169]
[1756306268625,0.02,4630.8,4630.2,2.75778278]
[1756306268823,0.02,4630.8,4630.3,2.15967466]
[1756306269178,0.02,4630.8,4630.2,0.59805489]
[1756306269519,0.02,4630.8,4630.1,1.661]
[1756306269942,2.15959303,4630.6,4630.1,1.661]
[1756306270110,2.15964009,4630.5,4629.8,0.02]
[1756306270434,0.66,4630.6,4629.8,0.02]
[1756306270622,0.02,4630.8,4629.8,0.02]
[1756306271171,0.66,4630.4,4629.8,0.02]
[1756306271443,2.15987386,4629.9,4629.8,0.02]
[1756306271742,2.81987386,4629.9,4629.8,0.02]
[1756306271923,5.81987386,4629.9,4629.8,0.02]
[1756306272125,3.0,4629.9,4629.8,0.02]
[1756306273200,0.108,4630.2,4629.8,0.02]
[1756306273405,0.30850946,4630.2,4629.8,0.02]
[1756306273737,0.108,4630.2,4629.8,0.02]
[1756306273938,0.108,4630.2,4629.9,2.15987386]
[1756306274144,0.108,4630.2,4629.9,0.43398295]
[1756306274313,0.108,4630.2,4630.0,0.02159827]
[1756306274499,0.108,4630.2,4630.1,2.15978056]
[1756306274708,2.26774031,4630.2,4629.8,0.18613902]
[1756306274930,0.108,4630.2,4629.8,0.02]
[1756306275628,0.200498,4630.7,4629.8,0.021]
[1756306275940,0.20045956,4630.6,4629.8,0.021]
[1756306276150,0.66,4630.7,4629.8,0.021]
[1756306276354,0.66,4630.6,4629.8,0.021]
[1756306276918,2.81987386,4629.9,4629.8,0.021]
[1756306277122,0.7683,4630.7,4629.8,0.18612431]
[1756306277316,0.02,4630.8,4630.0,2.15978857]
[1756306277545,0.02,4630.8,4629.8,0.021]
[1756306277745,2.15950072,4630.7,4629.8,2.1809141]
[1756306277907,0.02,4630.8,4630.0,2.15980628]
[1756306278248,0.66,4630.4,4629.8,0.18575124]
[1756306278410,0.66,4630.6,4629.8,0.18575124]
[1756306278605,0.66,4630.4,4629.8,0.18575124]
[1756306278854,0.66,4630.2,4629.8,0.021]
[1756306279238,0.66,4630.5,4629.8,0.021]
[1756306279531,0.66,4630.1,4629.8,0.021]
[1756306279962,0.66,4630.2,4629.8,0.021]
[1756306280224,2.15983882,4630.0,4629.8,0.021]
[1756306280551,2.81979926,4630.1,4629.8,0.021]
[1756306281045,2.15983428,4630.0,4629.8,0.021]
[1756306281240,0.64796969,4630.2,4629.8,0.021]
[1756306281608,3.0,4630.6,4629.8,0.021]
[1756306281815,3.0,4630.9,4630.1,2.15977456]
[1756306282139,3.0,4630.9,4629.8,0.021]
[1756306282140,0.02,4630.8,4629.8,0.021]
[1756306282316,0.02,4630.8,4629.8,2.18088332]
[1756306282517,2.15950072,4630.7,4629.8,0.021]
[1756306282718,0.66,4630.4,4629.8,2.18091594]
[1756306282945,0.66,4630.4,4629.8,0.021]
[1756306283114,0.66,4630.5,4629.8,0.021]
[1756306283618,3.02,4630.8,4629.9,0.02159873]
[1756306283821,3.02,4630.8,4630.1,2.15976999]
[1756306284441,3.02,4630.8,4630.2,2.15972835]
[1756306284748,3.02,4630.8,4629.8,0.021]
[1756306284959,0.02,4630.8,4629.8,0.021]
[1756306285117,0.02,4630.8,4630.7,2.15950072]
[1756306285322,0.02,4630.8,4630.7,2.37545079]
[1756306285520,0.02,4630.8,4630.7,2.50504579]
[1756306286133,0.02,4630.8,4630.7,2.48345079]
[1756306286966,0.02,4630.8,4629.9,1.661]
[1756306287166,0.02,4630.8,4630.0,2.15982721]
[1756306287337,0.02,4630.8,4630.3,2.15964314]
[1756306287662,0.68,4630.8,4629.8,0.021]
[1756306287863,0.20167988,4630.7,4629.8,2.18091949]
[1756306288030,0.20167988,4630.7,4629.9,2.15985796]
[1756306288233,0.9056926,4630.7,4630.0,2.15981362]
[1756306288540,0.20167988,4630.6,4629.9,2.15986544]
[1756306288723,0.20167988,4630.6,4630.0,2.15982532]
[1756306289129,0.20167988,4630.6,4629.9,2.15986539]
[1756306289325,0.20167988,4630.5,4629.9,2.15986539]
[1756306289562,0.66,4630.6,4629.8,0.021]
[1756306289832,0.4064383,4630.5,4629.8,0.021]
[1756306290043,0.20203703,4630.4,4629.8,0.021]
[1756306290253,0.20203703,4630.3,4629.8,0.021]
[1756306290470,0.20203703,4630.2,4629.8,0.021]
[1756306290766,0.02,4630.8,4630.7,2.15950072]
[1756306291380,0.02,4630.8,4630.7,2.18109572]
[1756306291573,0.02,4630.8,4630.7,2.72316438]
[1756306291726,0.02,4630.8,4630.7,2.70156938]
[1756306291933,0.02,4630.8,4630.7,2.72316438]
[1756306292248,0.02,4630.8,4630.7,2.70156938]
[1756306293070,0.02,4630.8,4630.7,2.72316438]
[1756306293368,0.02,4630.8,4630.7,2.70156938]
[1756306293530,0.02,4630.8,4630.1,3.82073533]
[1756306293531,0.02,4630.8,4630.2,3.996]
[1756306293731,0.02,4630.8,4630.4,2.15959969]
[1756306293932,0.02,4630.8,4630.4,2.15963789]
[1756306294163,0.02,4630.8,4630.1,1.661]
[1756306294770,0.20195514,4630.7,4630.2,2.15972806]
[1756306294931,0.20195514,4630.7,4630.2,2.15972385]
[1756306295363,0.20195514,4630.7,4629.8,4.017]
[1756306295670,0.52415065,4630.6,4629.8,4.017]
[1756306295963,0.66,4630.4,4629.8,0.021]
[1756306296165,0.66,4630.2,4629.8,0.021]
[1756306296357,2.15987386,4629.9,4629.8,0.021]
[1756306296553,2.361829,4629.9,4629.8,0.021]
[1756306296743,0.20195514,4629.9,4629.8,0.021]
[1756306297549,0.20205069,4629.9,4629.8,0.021]
[1756306298046,0.2020389,4629.9,4629.8,2.18092051]
[1756306298264,2.81958895,4630.6,4629.8,0.47169261]
[1756306298459,2.81958895,4630.6,4629.8,0.021]
[1756306298460,5.36162378,4630.5,4629.8,0.021]
[1756306298637,2.36167405,4630.4,4629.8,0.021]
[1756306298838,0.20201592,4630.3,4629.8,0.021]
[1756306299037,0.20201592,4630.2,4629.8,0.021]
[1756306299382,0.02,4630.8,4630.1,2.15977364]
[1756306299671,0.20201572,4630.7,4630.3,2.15968024]
[1756306299874,7.0,4630.7,4630.1,2.1597605]
[1756306300172,7.02,4630.8,4630.6,2.15950978]
[1756306300355,0.20199704,4630.7,4630.5,2.15958816]
[1756306300534,0.20199704,4630.7,4630.2,3.994]
[1756306300734,0.20199704,4630.7,4629.8,0.021]
[1756306300735,0.20199704,4630.6,4629.9,3.994]
[1756306300963,0.20199704,4630.5,4629.8,0.021]
[1756306301173,0.20199704,4630.4,4629.8,0.021]
[1756306301377,0.20199704,4630.3,4629.8,0.021]
[1756306301572,0.20199704,4630.2,4629.8,0.021]
[1756306301759,0.20205915,4630.1,4629.8,2.1809129]
[1756306301960,3.0,4630.7,4630.0,2.15982641]
[1756306302164,3.0,4630.7,4629.9,2.15987386]
[1756306302165,0.20205501,4630.6,4629.9,2.15987386]
[1756306302337,0.66,4630.4,4629.8,0.021]
[1756306302539,0.66,4629.9,4629.8,0.021]
[1756306302767,3.86205501,4629.9,4629.8,0.021]
[1756306302987,6.02192887,4629.9,4629.8,0.021]
[1756306303144,7.0062003,4629.9,4629.8,0.021]
[1756306303344,4.84632644,4629.9,4629.8,0.021]
[1756306303576,7.0062003,4629.9,4629.8,0.021]
[1756306303743,3.86205501,4629.9,4629.8,0.021]
[1756306304076,6.02192887,4629.9,4629.8,0.021]
[1756306304277,5.81987386,4629.9,4629.8,0.021]
[1756306304457,6.02193869,4629.9,4629.8,0.021]
[1756306304657,7.0062118,4629.9,4629.8,0.021]
[1756306305777,14.0062118,4629.9,4629.8,0.021]
[1756306305979,14.20823432,4629.9,4629.8,0.021]
[1756306306353,6.979,4629.8,4629.3,0.001]
[1756306306656,6.979,4629.8,4629.7,2.15996716]
[1756306309561,6.979,4629.9,4629.8,2.15992051]
[1756306310386,0.02,4630.8,4629.7,2.15996716]
[1756306310599,0.22192329,4630.8,4630.4,2.1596132]
[1756306310762,0.22192329,4630.8,4630.1,6.14977222]
[1756306310964,0.22192329,4630.8,4630.1,3.99]
[1756306311163,0.22192329,4630.8,4630.3,2.15965018]
[1756306311489,0.22192329,4630.8,4630.1,3.99]
[1756306311688,0.22192329,4630.8,4629.7,0.108]
[1756306311890,4.21092329,4630.8,4630.0,2.15981878]
[1756306312191,3.20192329,4630.7,4629.3,0.001]
[1756306312392,2.15989234,4629.9,4629.3,0.001]
[1756306312698,7.18096976,4629.8,4629.3,0.001]
[1756306312896,3.20197656,4629.7,4629.3,0.001]
[1756306313202,2.16010714,4629.4,4629.3,0.001]
[1756306313396,11.0120837,4629.4,4629.3,0.001]
[1756306313599,11.21403845,4629.4,4629.3,0.001]
[1756306314098,11.87303845,4629.4,4629.3,0.001]
[1756306315906,2.82080727,4627.9,4627.5,0.001]
[1756306316101,2.82094735,4627.6,4627.5,0.001]
[1756306316399,10.00992391,4627.6,4627.5,0.001]
[1756306316587,10.2115552,4627.6,4627.5,0.001]
[1756306317807,10.00957864,4627.6,4627.5,0.001]
[1756306317962,5.82127428,4626.9,4625.8,0.02]
[1756306318157,10.00965657,4626.9,4625.8,0.02]
[1756306318392,9.80827428,4626.9,4625.8,0.02]
[1756306319609,5.82174149,4625.9,4625.8,0.02]
[1756306319896,10.60707919,4625.9,4625.8,0.02]
[1756306320097,6.62007919,4625.9,4625.8,0.02]
[1756306320296,3.0,4625.9,4625.8,0.02]
[1756306320677,3.987,4626.3,4625.8,0.02]
[1756306320866,1.662,4627.0,4626.0,2.16165572]
[1756306321210,3.0,4626.8,4626.1,0.02161648]
[1756306321389,1.662,4628.3,4625.9,0.02161741]
[1756306321575,4.1532,4628.2,4625.8,0.04161788]
[1756306321774,0.20089013,4628.1,4625.9,2.16174149]
[1756306322091,2.16098718,4627.6,4626.0,0.02161694]
[1756306322266,3.0,4627.4,4625.8,0.02]
[1756306322466,2.16108745,4627.3,4625.9,2.16174149]
[1756306322668,3.0,4627.7,4625.9,0.22897415]
[1756306322868,3.986,4627.6,4625.9,0.22897415]
[1756306323098,3.0,4627.5,4625.9,0.22897415]
[1756306323281,5.16103697,4627.5,4625.9,0.25059156]
[1756306323481,1.662,4628.3,4625.9,0.25059156]
[1756306323482,0.1662,4628.2,4625.9,0.25059156]
[1756306323678,1.842,4628.5,4626.6,0.108]
[1756306323891,1.842,4628.5,4626.0,0.108]
[1756306323892,0.20080052,4628.4,4626.0,0.108]
[1756306324091,3.0,4627.6,4625.8,0.02]
[1756306324406,2.16142421,4626.6,4625.8,0.02]
[1756306324720,0.66,4627.3,4626.0,2.16169012]
[1756306324890,2.16123148,4627.0,4626.1,0.22033075]
[1756306325080,2.16108745,4627.3,4626.1,0.22033075]
[1756306325081,2.16132141,4626.8,4626.1,0.22033075]
[1756306325279,2.16150122,4626.5,4625.8,0.02]
[1756306325481,3.0,4627.0,4626.0,2.16167983]
[1756306325717,5.16123843,4627.0,4625.9,2.16173896]
[1756306325917,2.16147053,4626.5,4625.8,0.02]
[1756306326220,0.66,4627.3,4625.9,0.02161741]
[1756306326379,5.16108745,4627.3,4625.9,0.2203483]
[1756306326583,3.0,4627.3,4625.8,0.02]
[1756306326829,3.0,4627.2,4625.9,0.02161741]
[1756306326994,3.0,4627.8,4625.9,0.02161741]
[1756306327322,2.312045,4628.4,4625.9,0.02161741]
[1756306327485,2.16086761,4627.8,4626.1,2.16164804]
[1756306327682,0.66,4627.9,4626.0,0.91883872]
[1756306327882,4.2162045,4628.3,4625.8,0.02]
[1756306327883,2.16109309,4627.3,4625.8,0.02]
[1756306328199,6.14585571,4627.8,4625.8,0.02]
[1756306328388,2.16085571,4627.8,4626.9,2.16125162]
[1756306328583,2.16093446,4627.7,4626.8,2.1613119]
[1756306328787,2.16110297,4627.3,4626.5,1.662]
[1756306328979,0.33835701,4627.4,4625.8,0.02]
[1756306328980,0.66,4627.1,4625.8,0.02]
[1756306329179,2.16141994,4626.6,4625.8,0.02]
[1756306329417,5.16130087,4626.9,4625.9,2.16174149]
[1756306329640,3.0,4626.7,4625.8,0.02]
[1756306329939,0.20075937,4626.6,4625.8,0.02]
[1756306330109,0.66,4626.8,4625.8,0.02]
[1756306330315,0.3384502,4626.5,4625.8,0.02]
[1756306330513,5.49992101,4626.5,4625.8,0.02]
[1756306330721,0.66,4626.4,4625.8,0.02]
[1756306331013,0.3384502,4626.5,4625.8,0.02]
[1756306331323,2.16161691,4626.2,4625.8,0.02]
[1756306331521,0.3384502,4626.5,4625.8,0.02]
[1756306331696,2.16150786,4626.4,4625.8,0.02]
[1756306332113,0.3384502,4626.5,4625.8,2.1817809]
[1756306332294,0.3384502,4626.5,4626.3,2.16153702]
[1756306332492,0.3384502,4626.5,4626.0,2.16169476]
[1756306332723,0.3384502,4626.5,4625.8,0.021]
[1756306332890,0.3384502,4626.5,4625.8,2.18278292]
[1756306333233,0.67229522,4626.5,4625.8,0.021]
[1756306333930,2.83376453,4626.5,4625.8,0.021]
[1756306334292,0.3384502,4626.5,4625.8,0.021]
[1756306334597,0.3384502,4626.5,4625.9,2.16170484]
[1756306334790,0.3384502,4626.5,4626.1,2.16164128]
[1756306335232,5.16332816,4626.8,4626.0,2.16168465]
[1756306335429,3.002,4626.8,4625.9,2.16174149]
[1756306335616,0.002,4626.8,4626.1,2.16164804]
[1756306335823,0.002,4626.8,4626.7,2.16136771]
[1756306336502,0.0012,4626.8,4626.7,2.16136771]
[1756306337516,0.0012,4626.8,4626.6,0.108]
[1756306337690,0.0012,4626.8,4626.0,1.663]
[1756306337890,0.0012,4626.8,4626.0,3.82467771]
[1756306338216,0.0012,4626.8,4626.0,1.663]
[1756306338825,0.0012,4626.8,4625.7,2.1618302]
[1756306338826,2.16147095,4626.5,4625.7,2.1618302]
[1756306339032,2.16147095,4626.5,4625.3,1.663]
[1756306339033,2.16147095,4626.5,4625.5,2.16191563]
[1756306339209,3.33839775,4626.7,4625.6,2.16186751]
[1756306339210,2.71153303,4626.4,4625.6,2.16186751]
[1756306339404,0.66,4626.3,4625.3,1.663]
[1756306339603,0.54998687,4626.4,4625.3,0.001]
[1756306339604,5.82174149,4625.9,4625.3,0.001]
[1756306339840,10.00400188,4625.9,4625.3,0.001]
[1756306340438,10.34267909,4625.9,4625.3,0.001]
[1756306340743,11.99857785,4625.9,4625.3,0.001]
[1756306341054,12.2000022,4625.9,4625.3,0.001]
[1756306341255,5.16178823,4625.8,4625.3,0.001]
[1756306341439,2.16197518,4625.4,4625.3,0.001]
[1756306341645,6.54582401,4625.4,4625.3,0.001]
[1756306341953,0.20142435,4625.4,4625.3,0.001]
[1756306342248,1.662,4626.2,4625.5,2.16191259]
[1756306342411,0.40359114,4626.1,4625.6,2.1618761]
[1756306342610,0.40359114,4626.0,4625.6,2.1618761]
[1756306342833,2.16183619,4625.7,4625.3,0.001]
[1756306343034,0.40359114,4625.6,4625.3,0.001]
[1756306343211,0.20179557,4625.5,4625.4,2.16196332]
[1756306343424,0.40376019,4625.5,4625.3,0.001]
[1756306343633,0.40376019,4625.4,4625.3,2.16302192]
[1756306343821,0.20179557,4625.4,4625.3,2.76183605]
[1756306344021,0.20179557,4625.4,4625.3,2.78345626]
[1756306344227,0.0012,4626.8,4626.7,2.16136771]
[1756306344428,0.20314466,4626.8,4626.2,1.663]
[1756306344746,0.20314466,4626.8,4626.6,2.16139789]
[1756306344747,0.20194466,4626.7,4626.6,2.16139789]
[1756306345314,0.0012,4626.8,4626.7,2.16136771]
[1756306345619,0.0212,4626.8,4626.7,2.18298138]
[1756306345933,1e-08,4626.8,4626.7,9.16298138]
[1756306346251,1e-08,4626.8,4626.7,9.14136771]
[1756306346465,1e-08,4626.8,4626.7,10.48779292]
[1756306346628,1e-08,4626.8,4626.7,6.50779292]
[1756306346829,1e-08,4626.8,4626.7,10.48679292]
[1756306347725,1e-08,4626.8,4626.7,6.61579292]
[1756306347926,0.20000001,4626.8,4626.7,10.59479292]
[1756306348752,0.20000001,4626.8,4626.7,3.61579292]
[1756306348931,0.20000001,4626.8,4626.7,6.24736771]
[1756306349127,0.20000001,4626.8,4626.7,0.108]
[1756306349361,0.40176333,4626.8,4626.3,0.108]
[1756306349543,0.20176868,4626.7,4626.3,2.16151599]
[1756306349739,0.20176868,4626.7,4626.0,2.16168342]
[1756306349740,0.20176868,4626.6,4625.8,0.108]
[1756306349928,0.20176868,4626.6,4625.3,0.001]
[1756306349929,0.66,4626.3,4625.3,0.001]
[1756306350234,2.16175787,4625.9,4625.3,0.001]
[1756306350432,0.20176868,4625.8,4625.3,0.001]
[1756306350666,0.20176868,4625.7,4625.3,0.001]
[1756306350832,0.20176868,4625.6,4625.4,2.16194745]
[1756306351147,0.20176868,4625.5,4625.3,0.001]
[1756306351358,0.20176868,4625.4,4625.3,2.16302192]
[1756306351554,0.20176868,4625.4,4625.3,0.001]
[1756306351968,0.20176868,4625.4,4625.3,2.16302192]
[1756306352273,0.33845723,4625.6,4625.3,2.16302192]
[1756306352274,0.33845723,4625.6,4625.5,2.16192844]
[1756306352567,0.33845723,4625.6,4625.5,7.82354772]
[1756306352752,0.20200001,4626.8,4625.5,5.64]
[1756306352929,0.20200001,4626.8,4626.7,2.16136771]
[1756306353130,0.20200001,4626.8,4626.7,6.13836771]
[1756306353467,0.20200001,4626.8,4626.7,2.16136771]
[1756306353877,0.20200001,4626.8,4626.7,3.15764886]
[1756306354278,0.20200001,4626.8,4626.7,3.17926253]
[1756306354483,0.20200001,4626.8,4626.7,3.15764886]
[1756306356776,0.20200001,4626.8,4626.6,1.663]
[1756306357087,0.20200001,4626.8,4625.9,1.662]
[1756306357385,0.20168204,4626.7,4626.0,3.975]
[1756306357542,0.20168204,4626.7,4626.1,2.16164804]
[1756306357743,0.20170954,4626.6,4626.0,3.975]
[1756306357961,0.20200001,4626.8,4626.1,0.7798771]
[1756306358164,0.86169183,4626.7,4625.3,0.001]
[1756306358367,2.16146114,4626.5,4625.3,0.001]
[1756306358656,2.3632227,4626.4,4625.4,2.16197518]
[1756306358999,0.20169183,4626.3,4625.4,3.975]
[1756306359207,0.20169183,4626.2,4625.4,2.16193083]
[1756306359481,0.20169183,4626.2,4625.3,3.976]
[1756306359482,0.20169183,4626.1,4625.5,2.16190624]
[1756306359687,0.20169183,4626.0,4625.7,2.16178883]
[1756306359911,0.20169183,4625.9,4625.4,0.108]
[1756306360101,0.33843533,4626.3,4625.4,0.6826]
[1756306360395,0.20173177,4626.2,4625.5,0.02161928]
[1756306360603,0.33843533,4626.3,4625.7,2.26983098]
[1756306360748,0.20172596,4626.2,4625.5,2.16192844]
[1756306360956,0.20092596,4626.1,4625.4,3.974]
[1756306361193,0.20200001,4626.8,4625.6,2.1618817]
[1756306361408,0.20200001,4626.8,4625.4,4.76470655]
[1756306361615,0.33843364,4626.3,4625.6,0.108]
[1756306361908,0.33843364,4626.3,4625.9,2.16173306]
[1756306362230,6.979,4626.2,4625.6,2.16183993]
[1756306362434,7.92689084,4626.2,4625.5,6.13591931]
[1756306362578,6.979,4626.2,4625.7,2.16178837]
[1756306363277,6.979,4626.2,4625.5,3.973]
[1756306363479,6.979,4626.2,4625.7,2.1617963]
[1756306363913,6.979,4626.2,4625.5,3.973]
[1756306364481,6.979,4626.2,4625.7,2.16182034]
[1756306364697,6.979,4626.2,4626.0,2.16166585]
[1756306364902,6.979,4626.2,4626.0,3.973]
[1756306365280,0.33843364,4626.3,4626.1,2.16164804]
[1756306365622,0.20200001,4626.8,4626.4,2.16146941]
[1756306365915,0.20200001,4626.8,4626.0,4.3811]
[1756306366120,0.20200001,4626.8,4626.4,2.16146535]
[1756306366319,0.20200001,4626.8,4626.0,4.3811]
[1756306366480,0.20200001,4626.8,4626.1,0.44891]
[1756306366670,0.20200001,4626.8,4626.7,2.16136771]
[1756306366876,0.20200001,4626.8,4626.7,6.13336771]
[1756306367482,0.04,4628.8,4627.2,2.16113416]
[1756306367776,0.04,4628.8,4628.7,2.16043381]
[1756306368088,0.04,4628.8,4628.7,6.67252769]
[1756306369193,0.04,4628.8,4628.7,6.23943381]
[1756306369387,0.04,4628.8,4628.7,6.13143381]
[1756306369798,0.04,4628.8,4628.7,3.971]
[1756306371090,0.04,4628.8,4628.5,3.97]
[1756306371284,0.042,4628.8,4628.3,2.1605749]
[1756306371609,0.042,4628.8,4628.3,6.13061613]
[1756306371998,0.042,4628.8,4628.3,3.97]
[1756306372982,0.042,4628.8,4628.3,6.13061618]
[1756306373179,0.042,4628.8,4628.3,3.97]
[1756306374015,0.042,4628.8,4628.4,3.968]
[1756306374226,0.042,4628.8,4627.9,1.662]
[1756306374227,2.45644428,4628.8,4627.9,1.662]
[1756306374531,0.29604617,4628.8,4627.9,7.79080491]
[1756306374689,0.29604617,4628.8,4627.9,5.63]
[1756306375023,0.20136806,4628.7,4627.9,5.63]
[1756306375226,0.66,4628.7,4627.9,5.63]
[1756306375520,2.82043757,4628.7,4627.9,5.63]
[1756306375819,2.16062744,4628.3,4627.8,0.02]
[1756306376018,0.66,4628.5,4627.8,0.02]
[1756306376319,0.66,4628.1,4627.8,0.02]